bitfinex/quotes_ETHUSD_20240722
["timestamp","ask_amount","ask_price","bid_price","bid_amount"]
[1721661605678,3.49080583,3457.2,3456.6,3.471561]
[1721661605851,2.89268,3457.0,3456.5,2.89309]
[1721661606231,2.89277,3456.9,3456.3,2.89321]
[1721661606479,0.59829583,3457.0,3456.5,2.89309]
[1721661606645,0.59829583,3457.0,3456.5,2.89305]
[1721661606972,0.59829583,3457.1,3456.6,2.89301]
[1721661607333,0.59829583,3457.1,3456.5,3.182325]
[1721661607334,2.89274,3457.0,3456.5,0.289305]
[1721661607533,2.89274,3457.0,3455.7,6.61873024]
[1721661607534,2.89309,3456.6,3455.9,2.89353]
[1721661607844,2.3968,3456.6,3455.5,2.8939]
[1721661608050,2.89357,3456.0,3455.4,2.89397]
[1721661608266,0.59829583,3456.2,3455.4,2.89401]
[1721661608586,0.59829583,3456.2,3455.5,2.89393]
[1721661608587,0.59829583,3456.1,3455.5,2.89393]
[1721661608885,3.49172583,3456.1,3455.5,2.89388]
[1721661609033,3.49164583,3456.2,3455.6,2.89381]
[1721661609242,3.49164583,3456.2,3455.7,2.89376]
[1721661609472,3.49164583,3456.2,3455.6,2.89385]
[1721661609654,3.49164583,3456.2,3455.7,2.89376]
[1721661609856,0.59829583,3456.2,3455.7,0.578764]
[1721661610045,0.59829583,3456.6,3456.2,2.89335]
[1721661610244,3.79029374,3456.8,3455.6,2.255]
[1721661610245,3.49126583,3456.7,3455.9,2.89354]
[1721661610537,2.89322,3456.4,3455.9,2.89354]
[1721661610763,3.49137583,3456.6,3455.9,2.89353]
[1721661610971,3.49137583,3456.6,3455.9,5.78705]
[1721661611178,3.49136583,3456.6,3455.7,2.89371]
[1721661611479,2.8931,3456.5,3456.0,2.8935]
[1721661611976,0.59829583,3456.3,3455.8,2.89362]
[1721661612185,0.59829583,3456.4,3455.8,2.89362]
[1721661612538,0.59829583,3456.4,3455.9,2.89354]
[1721661612747,0.59829583,3456.4,3455.8,2.89362]
[1721661612748,0.59829583,3456.4,3455.8,2.89364]
[1721661612948,3.49147583,3456.4,3455.8,5.78727]
[1721661613155,3.49147583,3456.4,3455.9,2.89355]
[1721661613382,0.59829583,3456.4,3455.9,0.578718]
[1721661613546,0.59829583,3456.4,3456.1,2.89338]
[1721661613747,0.59829583,3456.5,3456.1,2.89338]
[1721661614389,0.59829583,3456.5,3456.4,2.89318]
[1721661614589,0.59829583,3456.7,3456.5,2.89303]
[1721661614880,7.32,3457.0,3456.6,2.89293]
[1721661614881,0.59829583,3456.8,3456.6,2.89293]
[1721661615085,1.19659166,3457.2,3456.7,2.89292]
[1721661615086,0.59829583,3456.9,3456.7,2.89292]
[1721661615379,0.59829583,3456.8,3456.7,2.89292]
[1721661615741,0.59829583,3456.8,3456.6,3.471611]
[1721661615941,0.91010743,3457.0,3456.6,3.471611]
[1721661616485,0.91010743,3456.9,3456.6,3.471561]
[1721661616699,0.91010743,3457.0,3456.6,3.471561]
[1721661616900,0.91010743,3456.9,3456.6,2.89296]
[1721661617071,0.91010743,3457.0,3456.8,2.89284]
[1721661617400,0.91010743,3457.1,3456.8,2.89284]
[1721661618184,0.91010743,3457.1,3456.8,2.8928]
[1721661618381,0.91010743,3457.3,3456.9,2.8927]
[1721661618965,0.91010743,3457.3,3456.7,2.89288]
[1721661619192,0.91010743,3457.3,3456.7,3.421778]
[1721661619395,0.91010743,3457.3,3456.7,0.528898]
[1721661619604,3.80267743,3457.2,3456.4,2.89311]
[1721661619798,2.89277,3456.9,3456.4,2.89311]
[1721661619959,2.89301,3456.7,3455.8,2.8936]
[1721661620161,2.89315,3456.5,3456.0,2.89347]
[1721661620369,2.89315,3456.5,3456.0,2.89346]
[1721661620604,2.89315,3456.5,3455.6,2.8938]
[1721661620605,2.89347,3456.1,3455.6,2.8938]
[1721661620904,2.89364,3455.9,3455.3,2.89409]
[1721661621263,2.89377,3455.7,3455.1,2.89425]
[1721661621462,2.89382,3455.7,3455.1,2.89425]
[1721661621663,2.89382,3455.7,3455.1,3.5020651]
[1721661622104,2.89407,3455.4,3454.8,0.289451]
[1721661622307,2.89387,3455.6,3454.8,0.289451]
[1721661622475,3.80387743,3455.7,3455.1,2.89425]
[1721661622663,3.80383743,3455.8,3454.9,2.89436]
[1721661622867,2.89373,3455.8,3455.1,2.8942]
[1721661623163,2.89377,3455.7,3455.1,2.89419]
[1721661623809,6.15880743,3455.9,3455.3,2.89408]
[1721661623967,0.91010743,3455.8,3455.3,2.89408]
[1721661624186,5.2487,3455.9,3455.3,2.89408]
[1721661624187,6.15880743,3455.9,3455.3,2.89408]
[1721661624392,5.2487,3455.9,3455.3,2.89408]
[1721661624701,0.91010743,3456.0,3455.6,2.89379]
[1721661624954,14.62387609,3456.3,3455.8,2.89363]
[1721661624955,8.23010743,3456.3,3455.8,2.89363]
[1721661625087,2.89336,3456.2,3455.6,2.89378]
[1721661625286,8.23010743,3456.3,3455.3,0.578832]
[1721661625287,2.89346,3456.1,3455.3,0.578832]
[1721661625628,0.91010743,3456.2,3455.6,2.89384]
[1721661625834,0.91010743,3456.2,3455.4,2.89401]
[1721661625835,2.89352,3456.0,3455.4,2.89401]
[1721661626134,7.32,3456.3,3455.6,2.89385]
[1721661626135,0.60654073,3456.1,3455.6,2.89385]
[1721661626302,7.92654073,3456.3,3456.0,2.89346]
[1721661626498,0.60654073,3456.6,3456.2,2.89333]
[1721661626829,0.60654073,3456.6,3456.0,2.89344]
[1721661627031,0.60654073,3456.6,3455.8,2.89364]
[1721661627203,2.89323,3456.4,3455.9,0.289364]
[1721661627532,2.89323,3456.4,3455.6,2.8938]
[1721661627533,0.60654073,3456.4,3455.8,2.89362]
[1721661627731,0.60654073,3456.3,3455.8,2.89362]
[1721661627902,0.60654073,3456.3,3455.6,2.89385]
[1721661627903,2.89339,3456.2,3455.6,2.89385]
[1721661628115,2.89339,3456.2,3455.4,0.6472842]
[1721661628116,2.89344,3456.1,3455.5,2.89389]
[1721661628446,0.60654073,3456.2,3455.7,2.89376]
[1721661628611,0.60654073,3456.3,3455.9,2.89357]
[1721661628936,0.60654073,3456.3,3455.8,0.289376]
[1721661628937,2.89327,3456.3,3455.8,0.289376]
[1721661629440,3.49972073,3456.4,3455.8,0.289376]
[1721661629590,0.60654073,3456.4,3455.8,3.183056]
[1721661629928,3.80325743,3456.5,3455.9,2.89355]
[1721661629929,3.49969073,3456.5,3455.9,2.89355]
[1721661630135,0.60654073,3456.5,3456.0,2.89345]
[1721661630444,3.49960073,3456.6,3456.0,5.78691]
[1721661630594,3.49960073,3456.6,3456.0,2.89345]
[1721661630792,0.60654073,3456.6,3455.9,0.36747215]
[1721661631129,7.92654073,3456.8,3456.2,2.89328]
[1721661631349,7.32,3456.8,3456.5,2.89308]
[1721661631636,7.32,3456.8,3456.5,2.89307]
[1721661631851,0.60654073,3457.0,3456.3,0.289328]
[1721661631852,0.06028397,3456.7,3456.3,0.289328]
[1721661632153,2.89276,3456.9,3456.3,0.289328]
[1721661632154,2.89292,3456.8,3456.3,0.289328]
[1721661632323,0.0603821,3456.6,3456.1,2.89342]
[1721661632528,2.89302,3456.6,3455.9,0.36747215]
[1721661632728,2.95351691,3456.5,3456.0,2.89351]
[1721661633038,2.95351691,3456.5,3455.9,0.36747215]
[1721661633247,2.95351691,3456.5,3455.9,3.26099215]
[1721661633417,2.95351691,3456.5,3456.0,3.91546021]
[1721661633736,2.89318,3456.4,3456.0,3.91546021]
[1721661633943,0.06043835,3456.4,3456.0,3.91546021]
[1721661634247,2.89312,3456.5,3456.0,0.91546021]
[1721661634450,0.6669619,3456.3,3455.1,7.31]
[1721661634651,0.6669619,3456.3,3455.5,2.89386]
[1721661634652,2.89343,3456.1,3455.5,2.89386]
[1721661634809,0.06025644,3456.0,3455.5,5.78773]
[1721661635009,0.06025644,3456.0,3455.6,0.578773]
[1721661635330,0.06025644,3456.0,3455.7,2.8937]
[1721661635527,0.91010743,3456.4,3455.8,2.89368]
[1721661635528,3.49977073,3456.4,3455.8,2.89368]
[1721661635857,0.60654073,3456.4,3455.7,2.89372]
[1721661636060,0.60654073,3456.4,3455.7,2.89371]
[1721661636266,0.60654073,3456.4,3455.9,2.89359]
[1721661636429,3.49976073,3456.4,3455.9,2.89359]
[1721661637127,3.49976073,3456.4,3455.8,2.89367]
[1721661637328,2.89327,3456.3,3455.8,2.89367]
[1721661637550,3.49973073,3456.4,3455.8,2.89367]
[1721661637721,2.89326,3456.3,3455.8,2.89367]
[1721661637917,3.49973073,3456.4,3455.9,2.89353]
[1721661637918,0.60654073,3456.4,3455.9,2.89353]
[1721661638118,0.60654073,3456.4,3456.0,2.8935]
[1721661638312,0.60654073,3456.4,3455.8,2.8936]
[1721661638665,0.60654073,3456.4,3455.8,5.78721]
[1721661638812,0.60654073,3456.4,3455.8,5.78723]
[1721661639013,0.60654073,3456.4,3455.8,2.8936]
[1721661639218,2.89331,3456.3,3455.8,2.8936]
[1721661640457,0.60654073,3456.4,3456.0,2.8935]
[1721661640644,0.60654073,3456.4,3455.8,6.45855213]
[1721661640847,2.89327,3456.3,3455.8,3.56494213]
[1721661641018,2.89327,3456.3,3455.8,2.8936]
[1721661641218,0.06038341,3456.2,3455.8,2.8936]
[1721661641458,0.06038341,3456.2,3455.9,2.89355]
[1721661641779,0.06036613,3456.1,3455.9,2.89355]
[1721661642270,0.60654073,3456.6,3456.2,2.8933]
[1721661642565,7.32,3456.7,3456.3,5.78642]
[1721661642566,7.92654073,3456.7,3456.3,5.78642]
[1721661642719,7.32,3456.7,3456.5,2.89309]
[1721661642918,3.49927073,3457.0,3456.5,2.89305]
[1721661643127,0.60654073,3457.0,3456.5,2.89305]
[1721661643544,3.49926073,3457.0,3456.3,2.89318]
[1721661643754,3.49926073,3457.0,3456.4,2.89317]
[1721661644123,3.49926073,3457.0,3456.5,2.89307]
[1721661644322,3.49926073,3457.0,3456.3,3.2403661]
[1721661644520,3.49926073,3457.0,3456.5,2.89309]
[1721661644821,0.60654073,3457.1,3456.7,2.89292]
[1721661645067,3.49915073,3457.1,3456.5,2.89303]
[1721661645270,3.49915073,3457.1,3456.6,2.893]
[1721661645428,3.49922073,3457.0,3456.5,2.89304]
[1721661646151,0.60654073,3457.0,3456.5,2.89304]
[1721661646468,0.60654073,3457.0,3456.3,3.2403961]
[1721661646633,0.60654073,3457.0,3456.6,2.893]
[1721661646839,2.89276,3456.9,3456.4,2.89314]
[1721661647028,0.60654073,3457.0,3456.5,2.89309]
[1721661647230,3.49922073,3457.0,3456.5,2.89309]
[1721661647426,0.60654073,3457.0,3456.5,2.89304]
[1721661647625,0.60654073,3457.0,3456.3,3.2403761]
[1721661647979,0.60654073,3457.0,3456.2,0.578681]
[1721661647980,0.60654073,3456.9,3456.2,0.578681]
[1721661648131,3.49935073,3456.9,3456.4,2.89313]
[1721661648683,3.49922073,3457.0,3455.9,2.8936]
[1721661648967,3.49922073,3457.0,3456.4,2.89312]
[1721661649321,2.89277,3456.9,3456.4,2.89312]
[1721661649522,0.60654073,3457.0,3456.4,2.89318]
[1721661649523,3.49922073,3457.0,3456.4,2.89318]
[1721661649781,6.39213073,3456.9,3456.3,2.89326]
[1721661649925,0.60654073,3456.9,3456.4,2.89316]
[1721661650351,3.49932073,3456.9,3456.4,2.89316]
[1721661650547,3.49932073,3456.9,3456.0,3.0]
[1721661650548,2.89293,3456.7,3456.2,2.89329]
[1721661650747,2.89293,3456.7,3456.0,5.89348]
[1721661650748,2.89285,3456.8,3456.0,5.89346]
[1721661651067,3.49939073,3456.8,3456.1,0.589346]
[1721661651242,3.49931073,3456.9,3456.1,0.589346]
[1721661651439,2.89294,3456.7,3456.0,2.89348]
[1721661651653,2.89314,3456.5,3456.0,2.89348]
[1721661651839,2.89313,3456.5,3455.9,2.89356]
[1721661652170,2.4296,3456.5,3455.2,2.89153024]
[1721661652466,2.4296,3456.5,3455.2,2.89414]
[1721661652467,0.60654073,3456.2,3455.2,2.89414]
[1721661652636,0.60654073,3456.2,3454.8,5.14551]
[1721661652637,3.49984073,3456.3,3455.7,2.89372]
[1721661652837,3.49984073,3456.3,3455.5,2.89388]
[1721661652838,0.60654073,3456.3,3455.5,2.89388]
[1721661653054,0.60654073,3456.3,3455.3,3.183434]
[1721661653055,2.89356,3456.0,3455.3,3.183434]
[1721661653253,0.60654073,3456.2,3455.3,3.183454]
[1721661653557,0.60654073,3456.2,3455.4,5.89397]
[1721661653558,2.89364,3455.9,3455.4,5.89397]
[1721661653740,2.89364,3455.9,3455.4,3.0]
[1721661653942,2.8936,3455.9,3455.3,6.183494]
[1721661654359,0.60654073,3456.0,3454.6,1.50947179]
[1721661654558,0.60654073,3456.0,3455.0,2.89428]
[1721661654559,2.89391,3455.6,3455.0,2.89428]
[1721661654744,2.89376,3455.7,3455.2,2.89418]
[1721661655136,11.12366743,3456.0,3454.8,2.89449]
[1721661655137,3.50019073,3455.9,3454.8,2.89449]
[1721661655335,0.60654073,3455.9,3455.4,2.89401]
[1721661655535,7.32,3456.0,3454.9,0.514949]
[1721661655536,10.82006073,3456.0,3455.5,2.89392]
[1721661655730,7.92654073,3456.0,3455.5,2.89392]
[1721661656273,0.06025235,3455.9,3455.5,2.89392]
[1721661656480,0.06025235,3455.9,3455.6,2.8938]
[1721661656776,0.06025235,3455.9,3455.7,3.18313]
[1721661657247,0.06025235,3455.9,3454.9,6.409359]
[1721661657443,2.8934,3456.2,3454.9,6.409359]
[1721661657444,2.8935,3456.1,3455.5,2.89388]
[1721661657790,2.8935,3456.1,3455.6,2.89381]
[1721661658083,0.06013381,3456.0,3455.7,2.89375]
[1721661658384,0.60654073,3456.3,3455.8,2.89363]
[1721661658530,0.0602587,3455.9,3455.5,2.89388]
[1721661658735,3.49989073,3456.2,3455.6,3.183198]
[1721661658967,0.06024704,3455.8,3455.6,2.89381]
[1721661659157,3.49983073,3456.3,3455.7,2.89376]
[1721661659379,2.89329,3456.3,3455.7,2.8937]
[1721661659536,2.89329,3456.3,3455.7,5.78741]
[1721661659732,2.89329,3456.3,3455.7,2.8937]
[1721661659965,2.89335,3456.2,3455.7,2.8937]
[1721661660364,0.60654073,3456.3,3455.4,2.89395]
[1721661660564,2.89358,3456.0,3455.5,2.89391]
[1721661660771,2.89358,3456.0,3455.5,3.472707]
[1721661660965,0.60654073,3456.1,3455.5,3.472707]
[1721661660966,3.49997073,3456.1,3455.5,3.472667]
[1721661661175,2.89351,3456.0,3455.5,0.578797]
[1721661661473,2.89364,3455.9,3455.3,2.89404]
[1721661661702,2.89369,3455.8,3455.3,5.78808]
[1721661661906,2.89362,3455.9,3455.4,2.89398]
[1721661662056,0.60654073,3456.1,3455.5,2.89392]
[1721661662261,1.21332168,3456.4,3455.0,2.255]
[1721661662262,0.60654073,3456.2,3455.0,2.255]
[1721661662506,0.60654073,3456.2,3455.6,2.8938]
[1721661662507,2.89339,3456.2,3455.6,2.8938]
[1721661662796,2.89339,3456.2,3455.6,2.89379]
[1721661663183,3.49981073,3456.3,3455.7,2.89371]
[1721661663389,2.89327,3456.3,3455.7,2.89371]
[1721661663591,3.49981073,3456.3,3455.8,2.89368]
[1721661663965,2.89336,3456.2,3455.6,2.89379]
[1721661664188,0.60654073,3456.2,3455.7,2.89376]
[1721661664506,0.60654073,3456.2,3455.6,2.89383]
[1721661664507,2.89348,3456.1,3455.6,2.89383]
[1721661664687,0.60654073,3456.2,3455.6,2.8938]
[1721661665003,0.60654073,3456.4,3456.1,2.89336]
[1721661665235,7.92654073,3456.5,3456.2,2.89331]
[1721661665497,7.32,3456.5,3456.2,2.89331]
[1721661665704,7.32,3456.5,3456.1,2.89338]
[1721661665872,7.92654073,3456.5,3455.8,2.89367]
[1721661666074,10.81968073,3456.5,3456.0,2.89348]
[1721661666283,7.92654073,3456.5,3456.1,2.89335]
[1721661666463,7.92654073,3456.5,3456.4,2.89318]
[1721661666464,7.32,3456.5,3456.4,2.89318]
[1721661666666,0.60654073,3456.9,3456.6,2.89297]
[1721661666898,10.67560743,3457.1,3456.6,2.89297]
[1721661666899,0.60654073,3457.0,3456.6,2.89297]
[1721661667103,10.37204073,3457.1,3456.1,2.89343]
[1721661667306,13.26468073,3457.1,3456.4,2.89312]
[1721661667466,3.49935073,3456.9,3456.4,2.89312]
[1721661667665,3.49935073,3456.9,3456.2,0.528693]
[1721661667860,2.89297,3456.7,3456.2,3.422013]
[1721661668086,3.49939073,3456.8,3456.2,0.528693]
[1721661668291,3.49939073,3456.8,3456.2,2.89331]
[1721661668506,3.49939073,3456.8,3456.3,2.89326]
[1721661668673,0.60654073,3456.8,3456.4,2.89318]
[1721661668871,0.60654073,3456.8,3456.3,2.89326]
[1721661668872,0.60654073,3457.0,3456.5,2.89308]
[1721661669098,0.60654073,3457.0,3456.5,2.89305]
[1721661669516,7.92654073,3457.1,3456.6,2.89296]
[1721661669717,0.60654073,3457.0,3456.5,3.182355]
[1721661669917,0.60654073,3457.0,3456.6,2.89301]
[1721661670488,0.60654073,3457.0,3456.5,3.182345]
[1721661670718,0.60654073,3457.0,3456.5,2.89302]
[1721661671115,0.66015434,3456.9,3456.2,2.89329]
[1721661671595,0.66015434,3456.9,3456.0,2.89346]
[1721661671596,2.89307,3456.6,3456.0,2.89346]
[1721661671801,2.89307,3456.6,3456.1,2.89337]
[1721661671996,0.0536109,3456.5,3456.2,2.89331]
[1721661672316,0.0536109,3456.5,3456.4,2.89318]
[1721661672509,0.60654073,3456.8,3456.4,2.89318]
[1721661672694,0.60654073,3456.8,3456.4,2.89312]
[1721661673061,0.60654073,3456.8,3456.6,2.893]
[1721661673191,0.60654073,3456.9,3456.5,2.89303]
[1721661673381,0.60654073,3456.9,3456.6,2.89297]
[1721661673999,0.60654073,3456.9,3456.6,2.89296]
[1721661674340,0.60654073,3457.1,3456.6,2.89294]
[1721661674541,0.60654073,3457.0,3456.6,2.89294]
[1721661674832,0.60654073,3457.2,3456.8,2.89277]
[1721661675212,0.60654073,3457.2,3456.9,2.89272]
[1721661675411,1.06013142,3457.2,3456.8,2.89284]
[1721661675614,0.60654073,3457.1,3456.8,2.89284]
[1721661675799,0.45359069,3457.2,3456.6,2.89295]
[1721661675800,3.95265142,3457.2,3456.6,2.89295]
[1721661675995,1.06013142,3457.2,3456.7,2.89286]
[1721661676499,0.60654073,3457.1,3456.7,2.89286]
[1721661676963,0.60654073,3457.1,3456.5,0.289303]
[1721661676964,0.60654073,3457.1,3456.5,3.182313]
[1721661677267,0.60639998,3457.1,3457.0,2.89268]
[1721661677400,1.05999067,3457.2,3456.9,2.89276]
[1721661677600,0.45359069,3457.2,3457.0,2.89266]
[1721661677843,0.45359069,3457.2,3456.9,2.89276]
[1721661678426,1.05999067,3457.2,3456.9,2.89276]
[1721661678738,0.45359069,3457.2,3456.9,2.89271]
[1721661678941,0.45359069,3457.2,3457.1,2.89259]
[1721661679545,7.32,3457.4,3457.2,2.89251]
[1721661679728,0.60639998,3457.5,3457.1,2.89259]
[1721661679936,0.60639998,3457.5,3457.0,0.05785122]
[1721661680104,1.81905905,3458.3,3457.7,2.89209]
[1721661680105,7.92639998,3458.0,3457.7,2.89209]
[1721661680303,7.92639998,3458.0,3457.1,2.255]
[1721661680304,0.60639998,3458.2,3457.8,2.892]
[1721661680502,0.60639998,3458.3,3458.2,2.89167]
[1721661680710,7.32,3458.5,3458.2,2.89167]
[1721661681247,7.32,3458.5,3458.4,2.89151]
[1721661681451,2.95649998,3458.8,3458.4,2.89151]
[1721661681601,2.95649998,3458.8,3458.3,2.89157]
[1721661681803,0.60639998,3458.9,3458.3,0.289157]
[1721661682104,7.32,3459.1,3458.4,3.44147]
[1721661682340,7.32,3459.1,3458.9,2.89101]
[1721661682698,7.32,3459.1,3458.7,5.78241]
[1721661682911,7.32,3459.1,3458.7,2.89118]
[1721661683234,7.32,3459.1,3458.8,2.89112]
[1721661683608,7.32,3459.1,3459.0,2.891]
[1721661684036,7.32,3459.1,3458.9,2.89109]
[1721661684204,7.32,3459.1,3459.0,2.891]
[1721661685215,7.32,3459.1,3459.0,6.360208]
[1721661685629,0.0990996,3459.3,3459.1,2.89091]
[1721661685825,0.0990996,3459.3,3459.2,2.89084]
[1721661686068,0.0990996,3459.3,3459.2,5.78168]
[1721661686441,0.0990996,3459.3,3459.0,2.89096]
[1721661686963,0.0990996,3459.3,3458.9,2.89103]
[1721661687265,0.0990996,3459.3,3458.6,3.0]
[1721661687418,2.9899196,3459.3,3458.6,5.89132]
[1721661687616,0.0990996,3459.3,3458.7,2.89121]
[1721661687955,2.9898996,3459.3,3458.8,3.0]
[1721661688170,0.0990996,3459.3,3458.8,3.0]
[1721661688376,2.89084,3459.2,3458.7,3.0]
[1721661688748,0.0990996,3459.3,3458.2,2.89164]
[1721661688949,0.0990996,3459.3,3457.9,2.89188]
[1721661688950,2.89092,3459.1,3457.9,2.89188]
[1721661689151,2.9898696,3459.3,3458.1,2.8917]
[1721661689471,2.8912,3458.8,3458.2,2.89167]
[1721661689866,2.89139,3458.6,3458.0,2.89183]
[1721661690068,2.8912,3458.8,3458.0,2.89183]
[1721661690376,10.21103,3459.0,3458.4,2.89145]
[1721661691035,7.32,3459.0,3458.6,2.89132]
[1721661691237,7.32,3459.0,3458.5,2.89135]
[1721661691637,7.32,3459.0,3458.7,2.89125]
[1721661691833,0.0990996,3459.3,3458.5,2.89135]
[1721661692039,2.9898696,3459.3,3458.8,2.89112]
[1721661692260,0.0990996,3459.3,3458.5,2.89136]
[1721661692473,2.89098,3459.1,3458.5,2.89136]
[1721661692637,0.0990996,3459.3,3458.2,2.89167]
[1721661692638,2.89123,3458.8,3458.2,2.89167]
[1721661692832,2.89108,3459.0,3458.3,2.89152]
[1721661693039,2.89108,3459.0,3458.4,2.89149]
[1721661693501,2.89111,3458.9,3458.4,2.89149]
[1721661693672,2.89108,3459.0,3458.2,3.4989353]
[1721661693673,2.89108,3459.0,3458.2,3.4988653]
[1721661694012,2.89093,3459.1,3458.5,2.89141]
[1721661694211,2.9899196,3459.3,3458.6,2.89132]
[1721661694420,2.9899196,3459.3,3458.7,2.89125]
[1721661694556,2.9899196,3459.3,3458.8,2.89117]
[1721661694758,2.89096,3459.1,3458.5,3.53036953]
[1721661695002,0.0990996,3459.3,3458.5,0.63900953]
[1721661695163,0.0990996,3459.3,3458.3,2.89156]
[1721661695164,2.89122,3458.8,3458.4,3.0]
[1721661695371,2.89114,3458.9,3458.4,3.0]
[1721661695566,2.89103,3459.0,3458.4,3.0]
[1721661695785,2.89103,3459.0,3458.2,3.0]
[1721661695968,2.89122,3458.8,3458.1,2.89171]
[1721661696169,2.89122,3458.8,3458.1,3.480881]
[1721661696802,2.89126,3458.7,3458.1,3.480881]
[1721661697298,2.89126,3458.7,3458.1,3.480861]
[1721661697598,2.89113,3458.9,3458.3,5.78311]
[1721661697761,10.21099,3459.1,3458.5,2.89138]
[1721661698283,7.32,3459.1,3458.5,2.89138]
[1721661698485,10.21092,3459.1,3458.6,2.89132]
[1721661698792,7.32,3459.1,3458.7,2.89125]
[1721661700041,2.89102,3459.0,3458.5,2.89139]
[1721661700194,2.89102,3459.0,3458.3,3.5287481]
[1721661700546,2.89102,3459.0,3458.1,0.589171]
[1721661700547,2.89122,3458.8,3458.2,2.89161]
[1721661700687,2.3852,3459.0,3458.4,2.89149]
[1721661700894,2.89116,3458.9,3458.2,2.89161]
[1721661701147,2.89116,3458.9,3458.4,2.89146]
[1721661701439,0.03205796,3458.8,3458.4,2.89146]
[1721661702006,0.03205796,3458.8,3458.2,2.89161]
[1721661702007,2.89126,3458.7,3458.2,2.89161]
[1721661702203,2.89126,3458.7,3457.8,3.0]
[1721661702204,0.03204353,3458.7,3457.8,3.0]
[1721661702442,2.89164,3458.3,3457.8,3.0]
[1721661702614,2.89158,3458.4,3457.8,6.770419]
[1721661702934,2.92357995,3458.3,3457.8,3.878429]
[1721661703440,0.03198995,3458.3,3458.1,2.89175]
[1721661703738,5.27623,3459.0,3458.3,2.89156]
[1721661703955,2.89118,3458.8,3458.3,2.89156]
[1721661704099,7.32,3459.1,3458.0,2.4951]
[1721661704100,2.89109,3458.9,3458.4,3.469787]
[1721661704421,10.21093,3459.1,3458.5,2.89142]
[1721661704620,2.89093,3459.1,3458.6,2.89133]
[1721661704826,2.89091,3459.2,3458.4,2.89145]
[1721661705155,2.89091,3459.2,3458.6,2.89134]
[1721661705455,0.0990996,3459.3,3458.6,2.89134]
[1721661705456,0.0990996,3459.3,3458.8,2.89111]
[1721661705938,0.0990996,3459.3,3458.9,2.89105]
[1721661706307,2.9898496,3459.3,3458.8,2.89114]
[1721661707333,0.0990996,3459.3,3458.8,0.578243]
[1721661707543,0.0990996,3459.3,3458.1,5.94952787]
[1721661707707,0.0990996,3459.3,3459.1,2.89087]
[1721661707910,0.0990996,3459.3,3459.2,2.89084]
[1721661708120,0.0990996,3459.3,3459.2,5.78168]
[1721661710401,0.0990996,3459.3,3459.2,2.89084]
[1721661710646,0.0990996,3459.3,3459.2,3.46902]
[1721661710818,0.0990996,3459.3,3459.2,0.57818]
[1721661711850,0.0990996,3459.3,3458.9,3.0]
[1721661712027,0.0990996,3459.3,3459.0,2.89096]
[1721661712214,0.0990996,3459.3,3458.9,3.0]
[1721661712427,0.0990996,3459.3,3458.9,5.89109]
[1721661712622,0.0990996,3459.3,3459.0,2.89098]
[1721661712818,0.0990996,3459.3,3459.0,0.878208]
[1721661713559,0.0990996,3459.3,3459.0,3.769198]
[1721661713909,0.0990996,3459.3,3459.0,3.769158]
[1721661714107,0.0990996,3459.3,3459.0,3.769148]
[1721661714432,0.0990996,3459.3,3459.1,2.8909]
[1721661714618,0.0990996,3459.3,3459.2,0.6769108]
[1721661715634,0.0990996,3459.3,3458.9,3.0]
[1721661715851,2.89088,3459.2,3458.6,2.89134]
[1721661716145,0.03101677,3459.2,3458.8,2.8911]
[1721661716316,0.03101677,3459.2,3459.0,2.89095]
[1721661716517,0.03110439,3459.1,3459.0,2.89096]
[1721661716722,0.03110439,3459.1,3459.0,3.469168]
[1721661716922,0.0990996,3459.3,3459.1,2.89089]
[1721661717310,0.0990996,3459.3,3459.1,2.89088]
[1721661717510,0.0990996,3459.3,3459.2,2.89084]
[1721661722750,0.0990996,3459.3,3459.0,5.78193]
[1721661723045,0.0990996,3459.3,3459.0,2.89095]
[1721661723472,0.0990996,3459.3,3458.9,2.89105]
[1721661723894,0.0990996,3459.3,3458.9,3.713657]
[1721661724273,0.0990996,3459.3,3458.9,2.89103]
[1721661724704,0.0990996,3459.3,3459.0,2.89096]
[1721661725003,0.0990996,3459.3,3459.1,2.89092]
[1721661725704,0.0990996,3459.3,3458.9,2.89103]
[1721661726411,0.0990996,3459.3,3459.0,2.891]
[1721661726812,0.0990996,3459.3,3458.4,2.89145]
[1721661726813,2.89101,3459.0,3458.4,2.89145]
[1721661727010,2.89103,3459.0,3458.5,2.89134]
[1721661727320,2.89121,3458.8,3458.3,2.89158]
[1721661727511,2.89143,3458.5,3457.9,2.8919]
[1721661727696,2.89143,3458.5,3457.9,2.89187]
[1721661727874,2.89143,3458.5,3458.0,2.89183]
[1721661728327,0.60639998,3458.6,3458.0,2.89178]
[1721661728528,0.60639998,3458.6,3458.1,2.89168]
[1721661728827,0.60639998,3458.9,3458.0,0.3770209]
[1721661729028,0.60639998,3459.0,3458.1,2.89174]
[1721661729232,0.60639998,3459.0,3457.7,4.50856397]
[1721661729233,0.60639998,3459.1,3458.9,2.89108]
[1721661729544,0.60639998,3459.1,3458.2,2.369]
[1721661729545,2.9898596,3459.3,3458.8,2.89116]
[1721661729734,0.0990996,3459.3,3458.9,2.89107]
[1721661730022,0.0990996,3459.3,3459.1,2.89087]
[1721661730525,0.0990996,3459.3,3459.2,2.89084]
[1721661731083,0.13008639,3459.3,3459.2,2.89084]
[1721661732181,0.13008639,3459.3,3459.2,3.469023]
[1721661732386,0.13008639,3459.3,3459.2,5.78168]
[1721661733817,0.13008639,3459.3,3459.2,2.89084]
[1721661734723,0.13008639,3459.3,3459.2,5.78168]
[1721661737434,0.13008639,3459.3,3459.2,8.67252]
[1721661738228,0.13008639,3459.3,3459.2,10.93782]
[1721661738411,0.13008639,3459.3,3459.2,15.320707]
[1721661738731,0.13008639,3459.3,3459.2,15.870707]
[1721661738885,0.13008639,3459.3,3459.2,16.87584662]
[1721661739600,0.13008639,3459.3,3459.2,15.870707]
[1721661739798,0.13008639,3459.3,3459.2,18.761547]
[1721661740035,0.03019469,3459.3,3459.2,21.27424415]